Workbook

Sheet Innehåll
B2: Innehållsförteckning
B4: Anvisningar | C4: Anvisningar för att producera diagram till webben
B6: Vägledning | C6: Definitioner och förklaringar
B8: Data | C8: Tidsserier som ligger till grund för diagrammen
B10: Diagram 1 | C10: Fastighetsprisindex, Index 1981=100
B12: Diagram 2 | C12: Fastighetsprisindex, Årlig förändring i procent

Sheet Contents
B2: Contents
B4: Guide | C4: Definitions and explanations
B6: Data | C6: Time series
B8: Graph 1 | C8: Real estate price index, Index 1981=100
B10: Graph 2 | C10: Real estate price index, Percent change from previous year

Sheet Vägledning
B2: Vägledning
B4: Utskriftstips | C4: Utskriftsformatet i samtliga flikar med diagram är förinställt på att utskriften förstoras till 120% och innehållet centreras vertikalt och horisontellt.
C5: Om utskriften av diagrammen inte blir tillfredställande så ändra inställningarna under utskriftsformat till vad som passar just din skrivare.
B8: Definitioner & förklaringar
C10: Statistiken visar hur prisutvecklingen har varit för småhus, fritidshus och hyreshus. Prisnivån uttrycks som ett index med 1981=100. Serien för småhus och fritidshus är SCB:s officiella fastighetprisindex. Index för hyreshus bygger på SCB:s prisstatistik för hyreshus inom typkoderna 320, 321 och 325. Indexserien för hyreshus har beräknats med köpeskillingskoefficienter (K/T-tal). K/T är köpeskillingen (priset) i förhållande till taxeringsvärdet. För att skapa en tidsserie med K/T-tal som spänner över två eller flera allmän/förenklad fastighetstaxering har hänsyn tagits till de taxeringsvärdeförändringar som skett mellan taxeringarna. Utvecklingen av konsumentprisindex har tagits med för att enklare belysa storleken av prisförändringarna för fastigheter.

Sheet Guide
B2: Guide
B4: Utskriftstips | C4: Utskriftsformatet i samtliga flikar med diagram är förinställt på att utskriften förstoras till 120% och innehållet centreras vertikalt och horisontellt.
C5: Om utskriften av diagrammen inte blir tillfredställande så ändra inställningarna under utskriftsformat till vad som passar just din skrivare.
B8: Definitions | C8: The statistics illustrates the price trends for one- and two-dwelling houses for permanent living, buildings for seasonal and secondary use and multi-dwelling and commercial buildings. The price level is expressed as an index with base year 1981=100. The series for one- and two-dwelling houses for permanent living and buildings for seasonal and secondary use are the official real estate price indices. The index for multi-dwelling and commercial buildings is based on the purchase-price-coefficient with type codes in 320, 321 and 325. The consumer price index has been included to illustrate the proportion of the price changes of properties.

Sheet Anvisningar
H5: Diagramuppgifter | J5: =IF(yy="","","Data t.o.m " & yy) -> Data t.o.m 2023
J6: =IF(yy="","","Data up to and including " & yy) -> Data up to and including 2023
H8: pong (YYYYXnn)
H10: produktkod
H12: aktuell period för data: år | J12: 2023
H15: skapa alltid Excelfil | K15: beskrivning *) | N15: filnamn i klartext
N16: sv | O16: =IF(I55=FALSE,"",IF(TRIM(I51)="","",I51&"DI_01_SV"&IF(TRIM(I53)<>"","_"&TRIM(I53),""))) -> BO0501_2022A01_DI_01_SV_Fastighindex_ar
N17: eng | O17: =IF(I55=FALSE,"",IF(TRIM(I51)="","",I51&"DI_01_EN"&IF(TRIM(I53)<>"","_"&TRIM(I53),""))) -> BO0501_2022A01_DI_01_EN_Fastighindex_ar
H19: ange diagram-nummer och beskrivning för diagram på följande flikar:
H21: flik-namn | J21: nr (nn) | K21: beskrivning (15 tkn) *) | N21: diagram-namn i klartext
H23: Diagram 1/ Graph 1 | N23: sv | O23: =IF(TRIM(L47)="","","DI_"&IF(LEN(TRIM(L47))<2,"0"&TRIM(L47),TRIM(L47))&"_SV" & IF(TRIM(L48)<>"","_"&TRIM(L48),"")) -> DI_07_SV_Index_Ar
N24: eng | O24: =IF(TRIM(L47)="","","DI_"&IF(LEN(TRIM(L47))<2,"0"&TRIM(L47),TRIM(L47))&"_EN" & IF(TRIM(L48)<>"","_"&TRIM(L48),"")) -> DI_07_EN_Index_Ar
H26: Diagram 2 / Graph 2 | N26: sv | O26: =IF(TRIM(L49)="","","DI_"&IF(LEN(TRIM(L49))<2,"0"&TRIM(L49),TRIM(L49))&"_SV" & IF(TRIM(L50)<>"","_"&TRIM(L50),"")) -> DI_08_SV_Arsforandring
N27: eng | O27: =IF(TRIM(L49)="","","DI_"&IF(LEN(TRIM(L49))<2,"0"&TRIM(L49),TRIM(L49))&"_EN" & IF(TRIM(L50)<>"","_"&TRIM(L50),"")) -> DI_08_EN_Arsforandring
H29: Diagram 3 / Graph 3 | N29: sv | O29: =IF(TRIM(L51)="","","DI_"&IF(LEN(TRIM(L51))<2,"0"&TRIM(L51),TRIM(L51))&"_SV" & IF(TRIM(L52)<>"","_"&TRIM(L52),"")) -> 
N30: eng | O30: =IF(TRIM(L51)="","","DI_"&IF(LEN(TRIM(L51))<2,"0"&TRIM(L51),TRIM(L51))&"_EN" & IF(TRIM(L52)<>"","_"&TRIM(L52),"")) -> 
H32: Diagram 4 / Graph 4 | N32: sv | O32: =IF(TRIM(L53)="","","DI_"&IF(LEN(TRIM(L53))<2,"0"&TRIM(L53),TRIM(L53))&"_SV" & IF(TRIM(L54)<>"","_"&TRIM(L54),"")) -> 
N33: eng | O33: =IF(TRIM(L53)="","","DI_"&IF(LEN(TRIM(L53))<2,"0"&TRIM(L53),TRIM(L53))&"_EN" & IF(TRIM(L54)<>"","_"&TRIM(L54),"")) -> 
H35: Diagram 5 / Graph 5 | N35: sv | O35: =IF(TRIM(L55)="","","DI_"&IF(LEN(TRIM(L55))<2,"0"&TRIM(L55),TRIM(L55))&"_SV" & IF(TRIM(L56)<>"","_"&TRIM(L56),"")) -> 
N36: eng | O36: =IF(TRIM(L55)="","","DI_"&IF(LEN(TRIM(L55))<2,"0"&TRIM(L55),TRIM(L55))&"_EN" & IF(TRIM(L56)<>"","_"&TRIM(L56),"")) -> 
H38: filerna sparas här: | J38: \\wp\xmlDump
H40: *) frivillig uppgift
I45: Mellanlagring av värden
I46: pong | K46: diagramidentitet
I47: 2022A01 | K47: nr: | L47: 7
I48: produktkod | K48: beskrivning: | L48: Index_Ar
I49: BO0501 | K49: nr: | L49: 8
I50: Pong+prodkod | K50: beskrivning: | L50: Arsforandring
I51: =IF(OR(TRIM(I47)="",TRIM(I49)=""),"",I49&"_"&I47&"_") -> BO0501_2022A01_ | K51: nr:
I52: Beskrivn Excelfil | K52: beskrivning:
I53: Fastighindex_ar | K53: nr:
I54: Skapa Excelfil | K54: beskrivning:
I55: TRUE | K55: nr:
K56: beskrivning:
K58: Hjälplista
K59: 1 | L59: januari | M59: January | N59: första | O59: First
K60: 2 | L60: februari | M60: February | N60: andra | O60: Second
K61: 3 | L61: mars | M61: March | N61: tredje | O61: Third
K62: 4 | L62: april | M62: April | N62: fjärde | O62: Fourth
K63: 5 | L63: maj | M63: May
K64: 6 | L64: juni | M64: June
K65: 7 | L65: juli | M65: July
K66: 8 | L66: augusti | M66: August
K67: 9 | L67: september | M67: September
K68: 10 | L68: oktober | M68: October
K69: 11 | L69: november | M69: November
K70: 12 | L70: december | M70: December

Sheet Data
A1: Real estate price index
J2: =timeperiodEng -> Data up to and including 2023
B3: Index 1981=100 | F3: Per cent change from previous year
A4: Year | B4: One- or two-dwelling buildings | C4: Buildings for seasonal and secondary use | D4: Multi-dwelling and commercial buildings | E4: Consumer prices | F4: One- or two-dwelling buildings | G4: Buildings for seasonal and secondary use | H4: Multi-dwelling and commercial buildings | I4: Consumer prices
A5: Fastighetsprisindex
J6: =timeperiodSv -> Data t.o.m 2023
B7: Index 1981=100 | F7: Årlig förändring, procent
A8: År | B8: Småhus för permanentboende | C8: Fritidshus | D8: Hyreshus | E8: Konsumentpriser | F8: Småhus för permanentboende | G8: Fritidshus | H8: Hyreshus | I8: Konsumentpriser
A9: 1981 | B9: 100 | C9: 100 | D9: 100 | E9: 100
A10: 1982 | B10: 101 | C10: 104 | D10: 103.164557 | E10: 108.5637823 | F10: =((B10/B9)-1)*100 -> 1 | G10: =((C10/C9)-1)*100 -> 4 | H10: =((D10/D9)-1)*100 -> 3.164556962 | I10: 8.563782337
A11: 1983 | B11: 101 | C11: 107 | D11: 109.4936709 | E11: 118.2872435 | F11: 0 | G11: 2.884615385 | H11: 6.134969325 | I11: 8.956450288
A12: 1984 | B12: 105 | C12: 112 | D12: 118.9873418 | E12: 127.7430865 | F12: 3.96039604 | G12: 4.672897196 | H12: 8.670520231 | I12: 7.993966817
A13: 1985 | B13: 109 | C13: 117 | D13: 132.278481 | E13: 137.1989295 | F13: 3.80952381 | G13: 4.464285714 | H13: 11.17021277 | I13: 7.402234637
A14: 1986 | B14: 115 | C14: 123 | D14: 146.835443 | E14: 142.9973238 | F14: 5.504587156 | G14: 5.128205128 | H14: 11.00478469 | I14: 4.22626788
A15: 1987 | B15: 130 | C15: 139 | D15: 171.5189873 | E15: 148.9741302 | F15: 13.04347826 | G15: 13.00813008 | H15: 16.81034483 | I15: 4.179663132
A16: 1988 | B16: 154 | C16: 166 | D16: 216.3417722 | E16: 157.6271186 | F16: 18.46153846 | G16: 19.42446043 | H16: 26.13284133 | I16: 5.808383234
A17: 1989 | B17: 181 | C17: 191 | D17: 263.5063291 | E17: 167.7966102 | F17: 17.53246753 | G17: 15.06024096 | H17: 21.80094787 | I17: 6.451612903
A18: 1990 | B18: 203 | C18: 216 | D18: 313.7468354 | E18: 185.3702052 | F18: 12.15469613 | G18: 13.08900524 | H18: 19.06614786 | I18: 10.47315258
A19: 1991 | B19: 217 | C19: 253 | D19: 318.8734177 | E19: 202.676182 | F19: 6.896551724 | G19: 17.12962963 | H19: 1.633986928 | I19: 9.335899904
A20: 1992 | B20: 197 | C20: 225 | D20: 276.835443 | E20: 207.3148974 | F20: -9.216589862 | G20: -11.06719368 | H20: -13.18327974 | I20: 2.288732394
A21: 1993 | B21: 175 | C21: 205 | D21: 237.8734177 | E21: 216.9491525 | F21: -11.16751269 | G21: -8.888888889 | H21: -14.07407407 | I21: 4.647160069
A22: 1994 | B22: 183 | C22: 215 | D22: 265.4031646 | E22: 221.677074 | F22: 4.571428571 | G22: 4.87804878 | H22: 11.57327586 | I22: 2.179276316
A23: 1995 | B23: 184 | C23: 215 | D23: 261.9786076 | E23: 227.2970562 | F23: 0.5464480874 | G23: 0 | H23: -1.290322581 | I23: 2.535211268
A24: 1996 | B24: 185 | C24: 219 | D24: 272.2522785 | E24: 228.367529 | F24: 0.5434782609 | G24: 1.860465116 | H24: 3.921568627 | I24: 0.4709576138
A25: 1997 | B25: 198 | C25: 228 | D25: 291.0873418 | E25: 229.5272079 | F25: =((B25/B24)-1)*100 -> 7.027027027 | G25: 4.109589041 | H25: 6.918238994 | I25: 0.5078125
A26: 1998 | B26: 217 | C26: 248 | D26: 313.346962 | E26: 229.2595897 | F26: 9.595959596 | G26: 8.771929825 | H26: 7.647058824 | I26: -0.1165954139
A27: 1999 | B27: 237 | C27: 268 | D27: 340.7434177 | E27: 230.2408564 | F27: 9.216589862 | G27: 8.064516129 | H27: 8.743169399 | I27: 0.4280155642
A28: 2000 | B28: 263 | C28: 306 | D28: 356.5819937 | E28: 232.5602141 | F28: 10.97046414 | G28: 14.17910448 | H28: 4.648241206 | I28: 1.007361488
A29: 2001 | B29: 284 | C29: 335 | D29: 372.8828848 | E29: 238.2694023 | F29: 7.984790875 | G29: 9.477124183 | H29: 4.571428571 | I29: 2.454929037
A30: 2002 | B30: 302 | C30: 358 | D30: 393.2589987 | E30: 243.3541481 | F30: 6.338028169 | G30: 6.865671642 | H30: 5.464480874 | I30: 2.134032198
A31: 2003 | B31: 322 | C31: 383 | D31: 407.5222785 | E31: 248.0820696 | F31: 6.622516556 | G31: 6.983240223 | H31: 3.626943005 | I31: 1.942815249
A32: 2004 | B32: 353 | C32: 424 | D32: 456.4249519 | E32: 249.0633363 | F32: 9.627329193 | G32: 10.70496084 | H32: 12 | I32: 0.3955411722
A33: 2005 | B33: 387 | C33: 470 | D33: 479.8982351 | E33: 250.1338091 | F33: 9.631728045 | G33: 10.8490566 | H33: 5.142857143 | I33: 0.4297994269
A34: 2006 | B34: 431 | C34: 527 | D34: 516.4122313 | E34: 253.5414808 | F34: 11.36950904 | G34: 12.12765957 | H34: 7.608695652 | I34: 1.362339515
A35: 2007 | B35: 477 | C35: 588 | D35: 602.2462037 | E35: 259.1525424 | F35: 10.67285383 | G35: 11.57495256 | H35: 16.62121212 | I35: 2.213074379
A36: 2008 | B36: 491 | C36: 603 | D36: 622.4332273 | E36: 268.162355 | F36: 2.935010482 | G36: 2.551020408 | H36: 3.351955307 | I36: 3.476644522
A37: 2009 | B37: 501 | C37: 633 | D37: 642.6202508 | E37: 267.3148974 | F37: =((B37/B36)-1)*100 -> 2.036659878 | G37: 4.975124378 | H37: 3.243243243 | I37: -0.3160240844
A38: 2010 | B38: 538 | C38: 679 | D38: 676.6353856 | E38: 270.7047279 | F38: 7.385229541 | G38: =((C38/C37)-1)*100 -> 7.266982622 | H38: 5.293193717 | I38: 1.268103851
A39: 2011 | B39: 542 | C39: 677 | D39: 692.6504243 | E39: 277.8144514 | F39: 0.7434944238 | G39: -0.29455081 | H39: 2.366863905 | I39: 2.626375799
A40: 2012 | B40: 535 | C40: 664 | D40: 696.654184 | E40: 280.2854594 | F40: -1.291512915 | G40: -1.920236337 | H40: 0.5780346821 | I40: 0.8894454613
A41: 2013 | B41: 554 | C41: 682 | D41: 750.6248644 | E41: 280.1605709 | F41: 3.551401869 | G41: =((C41/C40)-1)*100 -> 2.710843373 | H41: =((D41/D40)-1)*100 -> 7.747126437 | I41: =((E41/E40)-1)*100 -> -0.04455760662
A42: 2014 | B42: 592 | C42: 710 | D42: 772.4453547 | E42: 279.6520963 | F42: 6.859205776 | G42: =((C42/C41)-1)*100 -> 4.105571848 | H42: =((D42/D41)-1)*100 -> 2.906976744 | I42: =((E42/E41)-1)*100 -> -0.181493982
A43: 2015 | B43: 656 | C43: 785 | D43: 842.2709235 | E43: 279.5272079 | F43: =((B43/B42)-1)*100 -> 10.81081081 | G43: =((C43/C42)-1)*100 -> 10.56338028 | H43: =((D43/D42)-1)*100 -> 9.039548023 | I43: =((E43/E42)-1)*100 -> -0.0446585218
A44: 2016 | B44: 711 | C44: 826 | D44: 946.8347127 | E44: 282.2747547 | F44: =((B44/B43)-1)*100 -> 8.384146341 | G44: =((C44/C43)-1)*100 -> 5.222929936 | H44: =((D44/D43)-1)*100 -> 12.41450777 | I44: =((E44/E43)-1)*100 -> 0.9829264401
A45: 2017 | B45: 770 | C45: 902 | D45: 986.2861591 | E45: 287.3416592 | F45: =((B45/B44)-1)*100 -> 8.298171589 | G45: =((C45/C44)-1)*100 -> 9.200968523 | H45: =((D45/D44)-1)*100 -> 4.166666667 | I45: =((E45/E44)-1)*100 -> 1.795025756
A46: 2018 | B46: 770 | C46: 892 | D46: 1065.189052 | E46: 292.9527208 | F46: =((B46/B45)-1)*100 -> 0 | G46: =((C46/C45)-1)*100 -> -1.10864745 | H46: =((D46/D45)-1)*100 -> 8 | I46: =((E46/E45)-1)*100 -> 1.952749061
A47: 2019 | B47: 791 | C47: 923 | D47: 1124.662107 | E47: 298.1801963 | F47: =((B47/B46)-1)*100 -> 2.727272727 | G47: =((C47/C46)-1)*100 -> 3.475336323 | H47: =((D47/D46)-1)*100 -> 5.583333333 | I47: =((E47/E46)-1)*100 -> 1.784409257
A48: 2020 | B48: 843 | C48: 1014 | D48: 1199.639581 | E48: 299.6610169 | F48: =((B48/B47)-1)*100 -> 6.573957016 | G48: =((C48/C47)-1)*100 -> 9.85915493 | H48: =((D48/D47)-1)*100 -> 6.666666667 | I48: =((E48/E47)-1)*100 -> 0.4966193981
A49: 2021 | B49: 985 | C49: 1186 | D49: 1230.880195 | E49: 306.1462979 | F49: =((B49/B48)-1)*100 -> 16.84460261 | G49: =((C49/C48)-1)*100 -> 16.96252465 | H49: =((D49/D48)-1)*100 -> 2.604166667 | I49: =((E49/E48)-1)*100 -> 2.164205763
A50: 2022 | B50: 1029 | C50: 1200 | D50: 1408.376868 | E50: 331.7662801 | F50: 4.467005076 | G50: 1.180438449 | H50: 14.42030457 | I50: 8.368542207
A51: 2023 | B51: 926 | C51: 1101 | D51: 1276 | E51: 360.1248885 | F51: =((B51/B50)-1)*100 -> -10.00971817 | G51: =((C51/C50)-1)*100 -> -8.25 | H51: =((D51/D50)-1)*100 -> -9.39925038 | I51: =((E51/E50)-1)*100 -> 8.547766933
A52: 2024 | B52: 930 | C52: 1103 | D52: 1298 | E52: 370.3389831 | F52: =((B52/B51)-1)*100 -> 0.4319654428 | G52: =((C52/C51)-1)*100 -> 0.1816530427 | H52: =((D52/D51)-1)*100 -> 1.724137931 | I52: =((E52/E51)-1)*100 -> 2.836264553
A53: 2025 | B53: 948 | C53: 1111 | D53: 1299 | E53: 372.8635147 | F53: =((B53/B52)-1)*100 -> 1.935483871 | G53: =((C53/C52)-1)*100 -> 0.725294651 | H53: =((D53/D52)-1)*100 -> 0.07704160247 | I53: =((E53/E52)-1)*100 -> 0.68168132

Sheet Diagram 1
B1: Fastighetsprisindex
B2: Index 1981=100
B3: Som jämförelse visas också konsumentprisutvecklingen

Sheet Graph 1
B1: Real estate price index
B2: Index 1981=100
B3: As a comparison the consumer price development is also shown

Sheet Diagram 2
B1: Fastighetsprisindex
B2: Årlig förändring i procent
B3: Som jämförelse visas också konsumentprisernas förändring

Sheet Graph 2
B1: Real estate price index
B2: Percent change from previous year
B3: As a comparison the consumer price development is also shown
